[Event "56th Rubinstein Memorial D 2020"]
[Site "Polanica Zdroj"]
[Date "2020.08.19"]
[Round "5.8"]
[White "Ursnik, Patryk"]
[Black "Szmidt, Przemyslaw"]
[Result "1/2-1/2"]
[ECO "B22"]
[WhiteElo "1601"]
[BlackElo "1831"]
[Annotator "NA RC"]
[PlyCount "65"]
[EventDate "2020.08.15"]
[EventType "swiss"]
[EventCountry "POL"]
[SourceTitle "playchess.com"]
[Source "ChessBase"]
[SourceQuality "1"]
[TimeControl "40/5400+30:1800+30"]

{[%evp 11,65,0,8,0,2,0,3,0,11,0,0,-67,-65,-96,-101,-114,-60,-104,-97,-111,-64,-79,-61,-75,-62,-151,-18,-193,-181,-177,-208,-268,-251,-256,-62,-62,-60,-68,-26,-94,-50,-37,160,157,170,160,165,0,36,0,0,-197,-210,-213,0,0]} 1. e4 {[%emt 0:06:06]} c5 {[%emt 0:00:00]} 2. c3 {[%emt 0:00:03]} Qa5 {[%emt 0:00:03]} 3. Nf3 {[%emt 0:05:25]} Nc6 {[%emt 0:00:09]} 4. d4 {[%emt 0:01:55]} cxd4 {[%emt 0:00:12]} 5. Nxd4 {[%emt 0:00:05]} Nf6 {[%emt 0:00:36]} 6. Nxc6 {[%emt 0:04:34] B22: Sicilian: 2 c3.} bxc6 {[%emt 0:00:43]} 7. Bd3 {[%emt 0:00:33]} g6 {[%emt 0:00:22]} 8. O-O {[%emt 0:00:05]} Bg7 {[%emt 0:00:04]} 9. Nd2 {[%emt 0:01:58]} O-O {[%emt 0:00:21]} 10. Nc4 {[%emt 0:01:39]} Qc7 {[%emt 0:00:49] [#]} 11. Ne3 $146 {[%emt 0:09:26]} ({White should try} 11. e5 $11 Nd5 12. Re1) ({Predecessor:} 11. f3 d5 12. Nd2 a5 13. Re1 Rd8 14. Qe2 e6 15. Nb3 c5 16. exd5 exd5 17. Bb5 {0-1 (37) Talmaci,A (1998)-Horvath,T (2398) Varna 2012}) 11... d5 {[%emt 0:00:37]} 12. exd5 {[%emt 0:04:27]} cxd5 {[%emt 0:01:37]} 13. Be2 {[%emt 0:01:10]} Bb7 {[%emt 0:00:36]} 14. Bf3 {[%emt 0:00:31]} Rad8 {[%emt 0:00:19]} 15. Qb3 {[%emt 0:02:22]} Ba8 {[%emt 0:01:14]} 16. Nc2 {[%emt 0:14:03]} h6 {[%emt 0:02:08]} 17. Be3 {[%emt 0:08:46]} e5 {[%emt 0:00:32]} 18. Rad1 {[%emt 0:00:16]} ({White should play} 18. Rac1 $15) 18... d4 {[%emt 0:03:12]} (18... Rb8 $17 19. Qa3 {[#]} d4 $1 {[%mdl 512]} 20. Bxa8 dxe3) 19. Bxa8 {[%emt 0:00:05]} (19. cxd4 $15 Bxf3 20. gxf3) 19... dxe3 {[%emt 0:00:13]} 20. Bf3 {[%emt 0:00:39]} e4 {[%emt 0:00:33]} 21. Be2 {[%emt 0:00:37]} exf2+ {[%emt 0:04:03]} 22. Rxf2 {[%emt 0:00:46] [#]} Qc5 $2 {[%emt 0:01:40]} (22... Rxd1+ $1 $19 23. Bxd1 Rb8) 23. Rxd8 {[%emt 0:03:14]} Rxd8 {[%emt 0:00:47]} 24. Nd4 {[%emt 0:01:48]} Qg5 {[%emt 0:01:47]} 25. Nc6 {[%emt 0:02:23]} ({White should play} 25. g3 $15) 25... Qc1+ {[%emt 0:02:02]} (25... Rd7 $17 26. Nd4 Ng4 27. Bxg4 Qxg4) 26. Bf1 {[%emt 0:01:55]} e3 $2 {[%emt 0:01:24]} (26... Re8 $15 27. Nd4 Rf8) 27. Rc2 {[%emt 0:03:07]} Qd1 {[%emt 0:01:16]} 28. Nxd8 {[%emt 0:05:47]} Qxd8 {[%emt 0:00:07]} 29. c4 $2 {[%emt 0:00:42]} (29. Qc4 $16) 29... Ng4 {[%emt 0:00:31]} 30. Be2 {[%emt 0:02:39]} Nxh2 $1 {[%emt 0:01:55]} ({Not} 30... Qh4 $2 31. Qb8+ {[%mdl 64] Double Attack} Kh7 32. Qg3 $18) 31. Qd3 $2 {[%emt 0:03:01]} (31. Kxh2 {is a self mate.} Qh4+ 32. Kg1 Qf2+ 33. Kh1 Be5 34. Qxe3 Qh4+ 35. Kg1 Qe1+ 36. Bf1 Qxe3+ 37. Kh1 Qg3 38. Kg1 Bd4+ 39. Rf2 Qxf2+ {[%mdl 64] Double Attack} 40. Kh2 Qh4#) (31. Qb5 $11 {and White stays safe.} Bd4 32. Kxh2 Qh4+ 33. Kg1 Qe1+ 34. Kh2 Qh4+ 35. Kg1 Qe1+ 36. Kh2 Qh4+) 31... Qh4 {[%emt 0:00:20]} 32. Qd6 {[%emt 0:04:34] [#]} Qf2+ $11 {[%emt 0:02:16]} (32... Nf1 $1 $19 {[%cal Rf1g3][%mdl 512]} 33. Bxf1 e2 34. Bxe2 (34. Qb8+ {is a self mate.} Kh7 35. Rd2 e1=Q 36. g3 Bd4+ 37. Rxd4 Qxd4+ 38. Kh2 Qxf1 39. Qg8+ Kxg8 40. b4 Qdg1#) 34... Bd4+ 35. Qxd4 Qxd4+ 36. Kf1 Qe4) 33. Kxh2 {[%emt 0:00:17]} 1/2-1/2

[Event "56th Rubinstein Memorial D 2020"]
[Site "Polanica Zdroj"]
[Date "2020.08.19"]
[Round "5.9"]
[White "Wawrzyniak, Pawel"]
[Black "Brzozowski, Pawel"]
[Result "1-0"]
[ECO "D55"]
[WhiteElo "1824"]
[BlackElo "1620"]
[Annotator "NA RC"]
[PlyCount "113"]
[EventDate "2020.08.15"]
[EventType "swiss"]
[EventCountry "POL"]
[SourceTitle "playchess.com"]
[Source "ChessBase"]
[SourceQuality "1"]
[TimeControl "40/5400+30:1800+30"]

{[%evp 12,113,10,12,0,7,11,1,8,8,18,4,9,-20,14,-466,0,0,0,11,25,8,22,7,29,12,79,67,79,77,137,89,79,84,84,69,81,67,67,42,37,23,30,27,21,16,25,14,44,15,18,-10,-15,-33,-29,-67,-29,-169,-200,-196,-111,-191,-144,-126,-100,-116,-114,-104,99,95,110,106,104,121,107,104,128,97,97,76,101,32,73,26,60,56,56,50,97,46,9,39,14,31,37,13,118,141,139,157,155,164,29978,29982]} 1. d4 {[%emt 0:00:00]} d5 {[%emt 0:00:00]} 2. c4 {[%emt 0:00:00]} e6 {[%emt 0:00:00]} 3. Nc3 {[%emt 0:00:05]} Nf6 {[%emt 0:00:00]} 4. Bg5 {[%emt 0:00:12]} Be7 {[%emt 0:00:00]} 5. e3 {[%emt 0:00:07]} O-O {[%emt 0:00:14]} 6. Nf3 {[%emt 0:00:07]} b6 {[%emt 0:00:21]} 7. cxd5 {[%emt 0:05:07]} Nxd5 {[%emt 0:00:08]} 8. Bxe7 {[%emt 0:00:17]} Qxe7 {[%emt 0:00:11]} 9. Nxd5 {[%emt 0:00:28]} exd5 {[%emt 0:00:12]} 10. Bd3 {[%emt 0:00:51]} Bb7 {[%emt 0:01:34]} 11. O-O {[%emt 0:08:37]} c5 {[%emt 0:02:06]} 12. Rc1 {[%emt 0:01:03]} Nd7 {[%emt 0:02:28]} 13. dxc5 {[%emt 0:15:02] E12: Queen's Indian: Unusual White 4th moves, 4 a3, 4 Nc3 Bb7 5 a3 and 4 Nc3 Bb7 .} (13. Rxc5 $2 {[%mdl 8192]}) (13. Qc2 $11 {and White has nothing to worry.}) 13... bxc5 {[%emt 0:01:18]} 14. Qe2 {[%emt 0:02:19] [#]} c4 $146 {[%emt 0:17:51]} ({Predecessor:} 14... Qd6 15. Rfd1 f5 16. Qc2 g6 17. Bb5 Rfc8 18. Qa4 Ne5 19. Nxe5 Qxe5 20. Rc2 c4 {0-1 (50) Mishina,O (2204)-Krasilnikova,N Cherepovets 2001}) 15. Bb1 {[%emt 0:03:53]} Rfc8 {[%emt 0:03:23]} 16. Rfd1 {[%emt 0:15:35]} a5 {[%emt 0:06:44]} 17. b3 {[%emt 0:07:59]} cxb3 {[%emt 0:12:32]} 18. axb3 {[%emt 0:00:14]} Qa3 {[%emt 0:19:48]} (18... Nc5 $11) 19. Rxc8+ {[%emt 0:08:51]} Rxc8 {[%emt 0:00:10]} 20. Bf5 {[%emt 0:00:20]} Rd8 {[%emt 0:05:51]} ({Black should try} 20... Rc7) 21. Bxd7 {[%emt 0:05:21]} Rxd7 {[%emt 0:00:20]} 22. Nd4 {[%emt 0:00:25]} Rc7 {[%emt 0:04:40]} 23. Qb5 {[%emt 0:04:26]} Kf8 {[%emt 0:08:33]} 24. h3 {[%emt 0:00:18]} Qc5 {[%emt 0:06:58]} 25. Qxc5+ {[%emt 0:06:14]} Rxc5 {[%emt 0:00:07]} 26. Kf1 {[%emt 0:00:08]} Ke7 {[%emt 0:02:25]} 27. Ke1 {[%emt 0:00:45]} Bc8 {[%emt 0:01:37]} 28. Ra1 {[%emt 0:00:48]} Kd6 {[%emt 0:01:49]} 29. Kd2 {[%emt 0:00:19]} Kc7 {[%emt 0:00:56]} 30. h4 {[%emt 0:05:51]} h5 {[%emt 0:01:01]} 31. b4 {[%emt 0:05:12]} axb4 {[%emt 0:00:26]} 32. Rb1 {[%emt 0:01:02]} Rc4 {[%emt 0:00:24]} 33. Rb3 {[%emt 0:01:20]} Kb6 {[%emt 0:00:54]} 34. Nc2 $2 {[%emt 0:01:56]} (34. Rb1 $11) 34... Ka5 {[%emt 0:00:51]} ({Resist} 34... Rxh4 35. Nxb4 Be6 36. Nd3+ Kc6 37. Rc3+ Kd6 38. Ra3 $17) 35. Nd4 {[%emt 0:00:34]} Bd7 {[%emt 0:00:30]} (35... Ka4 $19 36. Rb1 Rc3) 36. Kd3 {[%emt 0:00:59]} (36. f3 $17) 36... Bb5 {[%emt 0:00:58]} 37. Kd2 {[%emt 0:00:18]} Rc7 {[%emt 0:00:36]} 38. Rb1 {[%emt 0:00:17]} Rc3 {[%emt 0:00:30]} 39. Nc2 {[%emt 0:00:55] [#]} Bd3 $2 {[%emt 0:00:32]} (39... Rc4 $1 $17 {and life is bright.} 40. Nd4 Ba4) 40. Nxb4 {[%emt 0:00:47] Double Attack} Bxb1 {[%emt 0:00:29]} 41. Kxc3 {[%emt 0:30:01]} Kb5 {[%emt 0:30:20]} 42. Nxd5 {[%emt 0:00:16]} Kc5 {[%emt 0:00:22]} 43. Nf4 {[%emt 0:00:15]} g6 {[%emt 0:00:12]} 44. g3 {[%emt 0:01:14]} Be4 {[%emt 0:00:21]} 45. Nd3+ {[%emt 0:00:27]} Kd5 {[%emt 0:00:23]} 46. Nb4+ {[%emt 0:00:19]} (46. Kd2 $16) 46... Ke5 {[%emt 0:00:22]} 47. Kc4 {[%emt 0:00:44]} Kf5 {[%emt 0:00:31]} 48. Kd4 {[%emt 0:00:56]} Bb7 {[%emt 0:00:29]} 49. Nd3 {[%emt 0:00:13]} f6 {[%emt 0:00:46]} 50. Nc5 {[%emt 0:00:34]} Bc6 {[%emt 0:00:26]} 51. e4+ {[%emt 0:00:35]} Kg4 {[%emt 0:00:23]} 52. Ke3 {[%emt 0:00:11]} g5 {[%emt 0:00:29]} 53. hxg5 {[%emt 0:00:47]} Kxg5 {[%emt 0:01:19]} (53... fxg5 $11 {remains equal.} 54. Nd3 Be8) 54. Ne6+ {[%emt 0:00:28]} Kg4 {[%emt 0:00:25]} 55. Nd4 {[%emt 0:00:51]} Bd7 {[%emt 0:00:14] [#]} 56. Nf3 $1 {[%emt 0:00:22]} f5 $2 {[%emt 0:00:58]} (56... Be8 $18 57. Nh4 Bd7) 57. Ne5+ {[%emt 0:00:27] Double Attack} 1-0

[Event "56th Rubinstein Memorial D 2020"]
[Site "Polanica Zdroj"]
[Date "2020.08.19"]
[Round "5.10"]
[White "Grzelak, Piotr"]
[Black "Lewandrowski, Tomasz"]
[Result "1-0"]
[ECO "B20"]
[WhiteElo "1664"]
[BlackElo "1879"]
[Annotator "NA RC"]
[PlyCount "145"]
[EventDate "2020.08.15"]
[EventType "swiss"]
[EventCountry "POL"]
[SourceTitle "playchess.com"]
[Source "ChessBase"]
[SourceQuality "1"]
[TimeControl "40/5400+30:1800+30"]

{[%evp 8,145,14,15,9,-22,-27,-24,-17,-39,-5,-60,-76,-81,-68,-54,-21,-40,-26,-28,-33,-34,0,0,-18,-26,-18,-13,-25,-71,-27,-73,-67,-75,32767,32767,32767,-123,-138,-127,-129,-146,0,-92,32767,32767,32767,32767,32767,32767,32767,32767,32767,32767,32767,-143,-120,-527,-869,-439,-15,-213,-272,-577,-254,-360,-112,-114,-7,-179,-164,-218,-146,-118,-30,-30,-4,-21,8,12,8,0,0,2,0,0,0,0,0,0,0,0,32767,32767,32767,32767,32767,32767,32767,32767,32767,0,0,0,0,0,28,0,0,0,0,0,0,0,0,0,47,55,51,68,47,68,56,54,62,51,57,55,55,66,51,54,51,55,5077,29982,6440,29984,29982,29988]} 1. e4 {[%emt 0:14:52]} c5 {[%emt 0:00:00]} 2. c4 {[%emt 0:00:04]} d6 {[%emt 0:01:21]} 3. Ne2 {[%emt 0:00:12]} Nf6 {[%emt 0:00:36]} 4. Nbc3 {[%emt 0:00:08]} e5 {[%emt 0:00:46]} 5. d3 {[%emt 0:01:59]} Nc6 {[%emt 0:00:20]} 6. Bg5 {[%emt 0:03:07] A34: Symmetrical English: 2 Nc3, lines with ...d5.} Be7 {[%emt 0:00:15]} 7. Qd2 {[%emt 0:01:47] [#]} Nd4 $146 ({Predecessor:} 7... Bd7 8. g3 h6 9. Bxf6 Bxf6 10. Nd5 Bg5 11. f4 exf4 12. h4 Ne5 13. Ng1 Bf6 14. Nxf6+ Qxf6 15. Qxf4 {½-½ (60) Doucha,L (2099)-Blaho,S (2094) Slovakia 2011}) 8. f4 {[%emt 0:09:59]} exf4 {[%emt 0:15:31]} 9. Nxd4 {[%emt 0:03:20]} cxd4 {[%emt 0:00:18]} 10. Bxf6 {[%emt 0:00:21]} Bxf6 {[%emt 0:06:05]} 11. Nd5 {[%emt 0:00:45]} g5 {[%emt 0:03:36]} 12. Be2 {[%emt 0:03:37]} Be6 {[%emt 0:03:04]} 13. O-O-O {[%emt 0:02:03]} Be5 {[%emt 0:03:02]} 14. Kb1 {[%emt 0:04:59]} Bxd5 {[%emt 0:07:09]} 15. cxd5 {[%emt 0:06:45]} Rc8 {[%emt 0:08:59]} 16. h4 {[%emt 0:03:31]} h6 {[%emt 0:01:03]} 17. Bg4 {[%emt 0:00:41]} Rc5 {[%emt 0:01:04]} 18. Qb4 {[%emt 0:01:52]} (18. hxg5 $11 {keeps the balance.} hxg5 19. Qb4) 18... Qc7 {[%emt 0:05:49]} 19. Rc1 {[%emt 0:03:42]} (19. Bf5 $11) 19... h5 {[%emt 0:00:44]} 20. Bf5 {[%emt 0:03:04]} g4 {[%emt 0:00:16]} 21. Rxc5 {[%emt 0:00:19]} dxc5 {[%emt 0:00:38]} 22. Qb5+ {[%emt 0:03:48]} Ke7 {[%emt 0:02:33]} 23. Rc1 {[%emt 0:01:13]} b6 {[%emt 0:00:46]} 24. b4 {[%emt 0:00:46]} Kd6 $2 {[%emt 0:02:14]} (24... Rb8 $17 25. Qc4 a5) 25. bxc5+ {[%emt 0:05:16]} (25. Qa6 $1 $11 Ke7 26. Qa3) 25... bxc5 {[%emt 0:00:11]} 26. Rxc5 {[%emt 0:00:25]} Rb8 {[%emt 0:01:01]} 27. Rc6+ {[%emt 0:00:49]} Ke7 {[%emt 0:00:49]} 28. Rxc7+ {[%emt 0:01:29]} Bxc7 {[%emt 0:00:03]} 29. Qxb8 {[%emt 0:00:14]} Bxb8 {[%emt 0:00:01]} 30. Kc2 {[%emt 0:01:01]} Be5 {[%emt 0:01:51]} 31. Kb3 {[%emt 0:03:28]} Bf6 $2 {[%emt 0:04:26]} (31... f3 $19 32. gxf3 gxf3) 32. Kc4 $2 {[%emt 0:01:43]} (32. Kc2 $17 {was the crucial defense.}) 32... Kd6 {[%emt 0:03:32]} 33. Kb5 {[%emt 0:01:06]} g3 $2 {[%emt 0:04:21]} (33... Bxh4 $19 34. Bc8 f3 35. gxf3 gxf3) 34. Bh3 $2 {[%emt 0:00:50]} ({White has to play} 34. e5+ $1 $15 Kxe5 35. Be4) 34... Bd8 {[%emt 0:00:19]} ({Not} 34... Bxh4 35. a4 $17) 35. Ka6 $2 {[%emt 0:01:42]} (35. a4 {only move.} Ke5 36. Kc6) 35... Bb6 {[%emt 0:01:50]} ({Weaker is} 35... Bxh4 36. Kxa7 Bd8 37. a4 $11) 36. Kb5 {[%emt 0:00:32] [#]} f6 {[%emt 0:00:31]} (36... Ke5 $1 $19 37. Kc6 Bd8) 37. a4 {[%emt 0:03:10]} Bc5 {[%emt 0:02:54]} (37... Ke5 $17) 38. Kc4 $2 {[%emt 0:00:40] [#]} (38. a5 $1 $11 {and White is okay.}) 38... a6 $1 {[%emt 0:00:48]} 39. Kb3 {[%emt 0:00:50] [#]} Bb6 $2 {[%emt 0:00:27]} (39... Ke5 $1 $19 {has better winning chances.} 40. Kc2 {[#]} f3 $1 {[%mdl 512]}) 40. Kc2 {[%emt 0:00:23] [#]} Kc5 {[%emt 0:00:58]} (40... f5 $1 $17 {[%mdl 512]} 41. exf5 Bd8) 41. Kd2 {[%emt 0:31:01]} f3 {[%emt 0:35:12]} (41... f5 $5) 42. gxf3 {[%emt 0:00:40]} Bc7 {[%emt 0:00:01]} 43. Ke2 {[%emt 0:00:50]} Kb4 {[%emt 0:01:30]} 44. Bc8 {[%emt 0:00:39]} a5 {[%emt 0:00:11]} 45. Bd7 {[%emt 0:00:12]} Kc3 {[%emt 0:00:10]} 46. Bb5 {[%emt 0:00:49]} Bf4 {[%emt 0:04:34]} 47. Kf1 {[%emt 0:00:25]} Kd2 {[%emt 0:02:22]} 48. Kg2 {[%emt 0:00:21]} Ke3 {[%emt 0:00:20]} 49. Ba6 {[%emt 0:00:57]} Bd6 {[%emt 0:00:06]} 50. Bb5 {[%emt 0:00:25]} Kf4 {[%emt 0:00:30]} 51. Be8 {[%emt 0:02:20]} Ke3 {[%emt 0:00:44]} 52. Bb5 {[%emt 0:00:16]} Bf4 {[%emt 0:04:21]} 53. Bc4 {[%emt 0:00:26]} Bc7 {[%emt 0:00:54]} 54. Bb5 {[%emt 0:00:15]} Kf4 {[%emt 0:01:22]} 55. Bd7 {[%emt 0:01:04]} Bd6 {[%emt 0:00:28]} 56. Be8 {[%emt 0:01:37]} Ke3 {[%emt 0:00:25]} 57. Bb5 {[%emt 0:01:24]} Ke2 {[%emt 0:00:01]} 58. Bc4 {[%emt 0:00:26]} Kd2 {[%emt 0:00:03]} 59. Bb5 {[%emt 0:00:28]} Ke3 {[%emt 0:00:02]} 60. Bc4 {[%emt 0:00:16]} Kf4 {[%emt 0:00:17]} 61. Bb5 {[%emt 0:00:16]} Be7 {[%emt 0:01:12]} 62. Be8 {[%emt 0:02:18]} f5 {[%emt 0:01:32]} 63. exf5 {[%emt 0:02:36]} Bxh4 {[%emt 0:00:55]} 64. Bxh5 {[%emt 0:00:59]} Ke3 {[%emt 0:00:35]} 65. Bg6 {[%emt 0:00:24]} Bf6 {[%emt 0:00:20]} 66. Kxg3 {[%emt 0:03:45]} Kxd3 {[%emt 0:00:08]} 67. Kf4 {[%emt 0:00:32]} Kc3 {[%emt 0:01:56]} 68. Ke4 {[%emt 0:00:16]} d3 {[%emt 0:00:29]} 69. f4 {[%emt 0:00:15]} d2 {[%emt 0:01:31]} 70. Bh5 {[%emt 0:00:03]} Kc2 $18 {[%emt 0:00:53]} (70... Kb4 $14) 71. d6 {[%emt 0:00:16]} Kb3 {[%emt 0:00:31]} 72. Kd5 {[%emt 0:00:24]} Kxa4 {[%emt 0:00:14]} 73. Ke6 {[%emt 0:00:11]} 1-0

[Event "56th Rubinstein Memorial D 2020"]
[Site "Polanica Zdroj"]
[Date "2020.08.19"]
[Round "5.11"]
[White "Borowski, Przemyslaw"]
[Black "Jurkiewicz, Joanna"]
[Result "1-0"]
[ECO "B00"]
[WhiteElo "1790"]
[BlackElo "1691"]
[Annotator "NA RC"]
[PlyCount "67"]
[EventDate "2020.08.15"]
[EventType "swiss"]
[EventCountry "POL"]
[SourceTitle "playchess.com"]
[Source "ChessBase"]
[SourceQuality "1"]
[TimeControl "40/5400+30:1800+30"]

1. e4 {[%emt 0:01:03]} b6 {[%emt 0:00:00]} 2. d4 {[%emt 0:01:07]} Bb7 {[%emt 0:00:00]} 3. f3 {[%emt 0:02:18]} e6 {[%emt 0:00:04]} 4. Bd3 {[%emt 0:00:33]} c5 {[%emt 0:01:44]} 5. Ne2 {[%emt 0:02:14]} d5 {[%emt 0:04:01]} 6. c3 {[%emt 0:09:39]} Nf6 {[%emt 0:09:33]} 7. e5 {[%emt 0:00:30]} Nfd7 8. O-O {[%emt 0:03:26]} Nc6 {[%emt 0:06:18]} 9. f4 {[%emt 0:02:21]} c4 {[%emt 0:05:21]} 10. Bc2 {[%emt 0:01:19]} f5 {[%emt 0:04:11]} 11. exf6 {[%emt 0:02:29]} Qxf6 {[%emt 0:04:02]} 12. Nd2 {[%emt 0:03:36]} O-O-O {[%emt 0:02:22]} 13. Nf3 {[%emt 0:01:09]} Bd6 {[%emt 0:04:06]} 14. f5 {[%emt 0:06:25]} h6 {[%emt 0:00:48]} 15. fxe6 {[%emt 0:06:08]} Qxe6 {[%emt 0:00:45]} 16. Nf4 {[%emt 0:00:43]} Bxf4 {[%emt 0:04:36]} 17. Bxf4 {[%emt 0:00:08]} g5 {[%emt 0:01:00]} 18. Bg3 {[%emt 0:06:02]} Rhf8 {[%emt 0:06:39]} 19. Qd2 {[%emt 0:07:09]} Rf6 {[%emt 0:01:02]} 20. Rae1 {[%emt 0:05:18]} Qf7 {[%emt 0:03:15]} 21. Ne5 {[%emt 0:10:36]} Ncxe5 {[%emt 0:09:01]} 22. dxe5 {[%emt 0:04:07]} Rxf1+ {[%emt 0:01:46]} 23. Rxf1 {[%emt 0:00:06]} Qe7 {[%emt 0:03:53]} 24. Qe2 {[%emt 0:05:55]} Bc6 {[%emt 0:05:46]} 25. e6 {[%emt 0:01:04]} Kb7 {[%emt 0:03:07]} 26. Rf7 {[%emt 0:03:05]} Qe8 {[%emt 0:02:05]} 27. Bg6 {[%emt 0:07:10]} Qg8 {[%emt 0:04:06]} 28. Bh5 {[%emt 0:03:14]} Re8 {[%emt 0:02:03]} 29. Qg4 {[%emt 0:00:28]} Ka6 {[%emt 0:03:36]} 30. exd7 {[%emt 0:00:21]} Re4 {[%emt 0:01:45]} 31. Qf5 {[%emt 0:01:29]} d4 {[%emt 0:02:35]} 32. Bf3 {[%emt 0:01:21]} d3 {[%emt 0:03:06]} 33. Bxe4 {[%emt 0:01:37]} d2 {[%emt 0:00:06]} 34. Bc2 {[%emt 0:00:44]} 1-0

[Event "56th Rubinstein Memorial D 2020"]
[Site "Polanica Zdroj"]
[Date "2020.08.19"]
[Round "5.12"]
[White "Ciechonski, Piotr"]
[Black "Ratajczak, Hubert"]
[Result "1-0"]
[ECO "B23"]
[WhiteElo "1774"]
[BlackElo "1513"]
[Annotator "NA RC"]
[PlyCount "120"]
[EventDate "2020.08.15"]
[EventType "swiss"]
[EventCountry "POL"]
[SourceTitle "playchess.com"]
[Source "ChessBase"]
[SourceQuality "1"]
[TimeControl "40/5400+30:1800+30"]

1. e4 c5 2. Nc3 Nc6 3. f4 g6 4. Nf3 Bg7 5. Bc4 e6 6. d3 Nge7 7. f5 gxf5 8. Bg5 Qb6 9. Rb1 h6 10. Be3 Nd4 11. O-O d6 12. a3 Bd7 13. b4 Nxf3+ 14. Qxf3 Bxc3 15. bxc5 Qc6 16. cxd6 Qxd6 17. Rxb7 Bc6 18. Bb5 Bxb5 19. Rxb5 Qc6 20. Rc5 Qd7 21. Rxc3 Rb8 22. Qf2 a6 23. Bc5 Rf8 24. exf5 Nxf5 25. Bxf8 Kxf8 26. Rc4 Rb5 27. g4 Nd6 28. Rf4 Rg5 29. Qd4 Rg7 30. c4 Qc7 31. Qe5 Nb5 32. Qxc7 Nxc7 33. Kf2 Ke7 34. h3 h5 35. gxh5 f5 36. Rg1 Rh7 37. Rh4 e5 38. h6 Ne6 39. Rb1 Kf6 40. Rb6 Kg5 41. Rxe6 Kxh4 42. Rxe5 Rxh6 43. Rxf5 Rd6 44. Rd5 Rf6+ 45. Ke3 Kxh3 46. c5 Kg4 47. Rd6 Rf8 48. Rxa6 Kf5 49. Kd4 Rd8+ 50. Kc4 Rb8 51. a4 Rb1 52. Kd5 Rb3 53. d4 Rb4 54. Ra8 Kf6 55. a5 Ke7 56. Ra7+ Kd8 57. a6 Kc8 58. Kc6 Kb8 59. Rb7+ Ka8 60. Rxb4 Ka7 1-0

[Event "56th Rubinstein Memorial D 2020"]
[Site "Polanica Zdroj"]
[Date "2020.08.19"]
[Round "5.13"]
[White "Szydelko, Kazimierz"]
[Black "Ochenduszko, Bartosz"]
[Result "1-0"]
[ECO "D43"]
[WhiteElo "1713"]
[BlackElo "1531"]
[Annotator "NA RC"]
[PlyCount "55"]
[EventDate "2020.08.15"]
[EventType "swiss"]
[EventCountry "POL"]
[SourceTitle "playchess.com"]
[Source "ChessBase"]
[SourceQuality "1"]
[TimeControl "40/5400+30:1800+30"]

1. d4 {[%emt 0:00:00]} d5 {[%emt 0:00:00]} 2. c4 {[%emt 0:00:00]} c6 {[%emt 0:00:00]} 3. Nf3 {[%emt 0:00:38]} Nf6 {[%emt 0:00:00]} 4. Nc3 {[%emt 0:00:05]} e6 {[%emt 0:01:02]} 5. Bg5 {[%emt 0:01:03]} Be7 {[%emt 0:01:24]} 6. e3 {[%emt 0:00:09]} Nbd7 {[%emt 0:00:39]} 7. Qc2 {[%emt 0:00:41]} O-O {[%emt 0:01:35]} 8. cxd5 {[%emt 0:00:59]} exd5 {[%emt 0:00:51]} 9. Bd3 {[%emt 0:00:11]} Re8 {[%emt 0:07:44]} 10. O-O {[%emt 0:00:32]} Nf8 {[%emt 0:02:46]} 11. Rab1 {[%emt 0:01:02]} Bg4 12. Ne5 {[%emt 0:00:30]} Bh5 13. b4 Ng4 {[%emt 0:21:19]} 14. Bf4 {[%emt 0:07:44]} Nxe5 {[%emt 0:00:39]} 15. Bxe5 {[%emt 0:00:09]} Bd6 {[%emt 0:00:25]} 16. Bxd6 {[%emt 0:00:28]} Qxd6 {[%emt 0:00:02]} 17. b5 {[%emt 0:00:35]} Re6 {[%emt 0:01:36]} 18. bxc6 {[%emt 0:02:36]} bxc6 {[%emt 0:01:08]} 19. Ne2 {[%emt 0:01:08]} Rae8 {[%emt 0:07:17]} 20. Ng3 {[%emt 0:05:21]} Bg6 {[%emt 0:00:37]} 21. Rb7 {[%emt 0:01:53]} Qa3 {[%emt 0:13:26]} 22. Bxg6 {[%emt 0:06:50]} Nxg6 {[%emt 0:02:26]} 23. Rfb1 {[%emt 0:01:39]} h6 {[%emt 0:03:39]} 24. R1b3 {[%emt 0:02:43]} Qa6 {[%emt 0:00:50]} 25. Nf5 {[%emt 0:05:05]} Nf8 {[%emt 0:02:46]} 26. Qb2 {[%emt 0:08:16]} Ng6 27. Ra3 {[%emt 0:01:21]} Qc4 {[%emt 0:06:44]} 28. Rb4 {[%emt 0:00:54]} 1-0

[Event "56th Rubinstein Memorial D 2020"]
[Site "Polanica Zdroj"]
[Date "2020.08.19"]
[Round "5.14"]
[White "Kaczanowski, Pawel"]
[Black "Szuber, Dawid"]
[Result "1-0"]
[ECO "B32"]
[WhiteElo "1655"]
[BlackElo "1523"]
[Annotator "NA RC"]
[PlyCount "71"]
[EventDate "2020.08.15"]
[EventType "swiss"]
[EventCountry "POL"]
[SourceTitle "playchess.com"]
[Source "ChessBase"]
[SourceQuality "1"]
[TimeControl "40/5400+30:1800+30"]

1. e4 {[%emt 0:00:00]} c5 {[%emt 0:00:00]} 2. Nf3 {[%emt 0:00:00]} Nc6 {[%emt 0:00:00]} 3. d4 {[%emt 0:00:00]} cxd4 {[%emt 0:00:00]} 4. Nxd4 {[%emt 0:00:00]} d5 {[%emt 0:00:02]} 5. Bb5 {[%emt 0:02:45]} dxe4 {[%emt 0:00:28]} 6. O-O {[%emt 0:05:29]} Bd7 {[%emt 0:06:24]} 7. Nc3 {[%emt 0:03:11]} Nf6 {[%emt 0:01:19]} 8. Bxc6 {[%emt 0:05:45]} bxc6 9. Qe2 {[%emt 0:11:50]} e6 {[%emt 0:04:17]} 10. Bg5 {[%emt 0:19:44]} Be7 {[%emt 0:02:30]} 11. Nxe4 {[%emt 0:00:44]} Nxe4 {[%emt 0:01:13]} 12. Bxe7 {[%emt 0:00:05]} Qxe7 {[%emt 0:00:07]} 13. Qxe4 {[%emt 0:00:02]} Rc8 {[%emt 0:02:28]} 14. Rfd1 {[%emt 0:05:25]} O-O {[%emt 0:02:08]} 15. Nf5 {[%emt 0:07:41]} Qd8 {[%emt 0:03:18]} 16. Nxg7 {[%emt 0:01:05]} Kxg7 {[%emt 0:00:33]} 17. Qd4+ {[%emt 0:00:05]} Qf6 {[%emt 0:02:50]} 18. Qxf6+ {[%emt 0:01:05]} Kxf6 {[%emt 0:00:16]} 19. Rxd7 {[%emt 0:00:04]} a6 {[%emt 0:00:09]} 20. Kf1 {[%emt 0:01:52]} Rfe8 {[%emt 0:01:19]} 21. Rad1 {[%emt 0:00:20]} Re7 {[%emt 0:00:42]} 22. R1d3 {[%emt 0:00:40]} Rxd7 {[%emt 0:04:35]} 23. Rxd7 {[%emt 0:00:15]} Rb8 {[%emt 0:00:05]} 24. b3 {[%emt 0:00:12]} Rb5 {[%emt 0:01:36]} 25. Ra7 {[%emt 0:04:18]} Ra5 {[%emt 0:00:49]} 26. a4 {[%emt 0:00:19]} e5 {[%emt 0:00:57]} 27. Ke2 {[%emt 0:01:47]} Ke6 {[%emt 0:01:20]} 28. c4 {[%emt 0:00:34]} h5 {[%emt 0:00:45]} 29. h4 {[%emt 0:05:20]} Kf6 {[%emt 0:09:09]} 30. f3 {[%emt 0:00:40]} Ke6 {[%emt 0:04:17]} 31. Kd3 {[%emt 0:03:05]} f5 {[%emt 0:08:33]} 32. Kc3 {[%emt 0:01:14]} e4 {[%emt 0:00:12]} 33. f4 {[%emt 0:00:10]} Kd6 {[%emt 0:01:13]} 34. Rh7 {[%emt 0:01:30]} e3 {[%emt 0:00:19]} 35. Rh6+ {[%emt 0:01:00]} Kd7 {[%emt 0:00:40]} 36. Kd3 {[%emt 0:00:08]} 1-0